Cogmind - Beta 16 @@@ ROGUE MODE // 2025.11.27 @ 17:50:02 Player: Skysub Result: Self-destructed Performance ------------- Evolutions (3) 1500 Regions Visited (4) 800 Robots Destroyed (0) 0 Value Destroyed (0) 0 Prototype IDs (1) 20 Alien Tech Used (0) 0 Bonus (834) 834 TOTAL SCORE: 3154 Bonus ------- Pacifist 834 Cogmind --------- Core Integrity 515/700 Matter 208/300 Energy 107/125 System Corruption 6% Temperature Cool (1) Movement Flying (40) Location -7/Factory Parts ------- > --- POWER (2) -------- Light Ion Engine > --- PROPULSION (4) --- Xenon Bombardment Thruster > --- UTILITY (5) ------ Improved Signal Interpreter System Shield > --- WEAPON (2) ------- (None) > --- INVENTORY (5) ---- Micro Nuclear Core Light Treads Coolant Injector Powered Hammer Peak State ------------ > --- POWER ------------ Light Ion Engine > --- PROPULSION ------- Xenon Bombardment Thruster > --- UTILITY ---------- Improved Signal Interpreter System Shield > --- WEAPON ----------- (None) > --- INVENTORY -------- Micro Nuclear Core Light Treads Coolant Injector Powered Hammer [Rating: 12] Favorites ----------- Power Light Ion Engine Engine Light Ion Engine Propulsion Xenon Bombardment Thruster Flight Unit Xenon Bombardment Thruster Utility Improved Signal Interpreter Device Cryofiber Web Processor Improved Signal Interpreter Hackware System Shield Weapon Grenade Launcher Energy Gun Improved Medium Laser Launcher Grenade Launcher Build | -11 -10 -9 -8 -7 ------- Run | Yrd Mat Mat Mat Fac Slots Evolved 6 | . . 2 2 2 Power 1 | . . . . 1 Propulsion 2 | . . 1 1 . Utility 3 | . . 1 1 1 Weapon . | . . . . . Parts Attached 9 | . . 5 1 3 Power 1 | . . . . 1 Engine 1 | . . . . 1 Core . | . . . . . Reactor . | . . . . . Propulsion 1 | . . . . 1 Treads . | . . . . . Leg . | . . . . . Wheel . | . . . . . Hover . | . . . . . Flight 1 | . . . . 1 Utility 5 | . . 3 1 1 Device 2 | . . 2 . . Storage . | . . . . . Processor 2 | . . 1 1 . Hackware 1 | . . . . 1 Protection . | . . . . . Artifact . | . . . . . Weapon 2 | . . 2 . . Energy Gun 1 | . . 1 . . Energy Cannon . | . . . . . Ballistic Gun . | . . . . . Ballistic Cannon . | . . . . . Launcher 1 | . . 1 . . Special Weapon . | . . . . . Impact Weapon . | . . . . . Slashing Weapon . | . . . . . Piercing Weapon . | . . . . . Special Melee Weapon . | . . . . . Unidentified Prototypes 1 | . . 1 . . Parts Lost 1 | . . 1 . . Power . | . . . . . Propulsion . | . . . . . Utility 1 | . . 1 . . Weapon . | . . . . . Highest Loss Streak 1 | . . 1 . . To Critical Strikes . | . . . . . Average Backups 4 | 1 3 4 5 4 Power 1 | 1 2 2 2 1 Propulsion . | . 1 1 1 1 Utility . | . . . 1 1 Weapon . | . . . 1 1 Tool/Special . | . . . . . Unused Backups 5 | . . . . 5 Power 2 | . . . . 2 Propulsion 1 | . . . . 1 Utility 1 | . . . . 1 Weapon 1 | . . . . 1 Tool/Special . | . . . . . Average Slot Usage (%) 9 | . . 12 9 12 Device 1 | . . 6 . . Processor 5 | . . 5 9 7 Hackware 1 | . . . . 4 Peak Build Rating 12 | . . 6 4 12 Average Rating 3 | . . 2 2 5 On Entrance . | . . . 1 3 Avg Prop Armor Cover (%) . | . . . . . Naked Turns 66 | . 52 14 . . Heaviest Build 3 | . . 3 . 3 Greatest Support 6 | 3 3 3 3 6 Greatest Overweight (x) . | . . . . . Average Overweight (x) . | . . . . . Largest Inventory Capacity 5 | 5 5 5 5 5 Average Capacity 5 | 5 5 5 5 5 Most Carried 5 | 3 4 5 5 5 Average Carried 4 | 1 3 4 5 4 Final Capacity 5 | 5 5 5 5 5 Final Carried 5 | 3 4 5 5 4 Class Distribution -------------------- 100% | Mutant Dominant Class ---------------- Mutant | -10/Materials Mutant | -9/Materials Mutant | -8/Materials Mutant | -7/Factory Resources | -11 -10 -9 -8 -7 ----------- Run | Yrd Mat Mat Mat Fac Matter Collected 235 | 147 . 48 . 40 Remotely . | . . . . . Salvage Created . | . . . . . Parts . | . . . . . Haulers Intercepted . | . . . . . Recyclers Shooed . | . . . . . Parts Field Recycled . | . . . . . Retrieved Matter . | . . . . . Parts Self-Destructed . | . . . . . Prevented . | . . . . . Parts Restored . | . . . . . Kills | -11 -10 -9 -8 -7 ------- Run | Yrd Mat Mat Mat Fac Combat Hostiles Destroyed . | . . . . . Classes Destroyed . | . . . . . Best Kill Streak . | . . . . . Combat Bots Only . | . . . . . Max Kills in Single Turn . | . . . . . Gunslinging . | . . . . . Exploded . | . . . . . Melee . | . . . . . Uniques/NPCs Destroyed . | . . . . . Combat | -11 -10 -9 -8 -7 -------- Run | Yrd Mat Mat Mat Fac Hostile Shots Fired 64 | . 2 23 10 29 Missed 34 | . 1 12 4 17 Hits 30 | . 1 11 6 12 Projectile 30 | . 1 11 6 12 Critical Strikes 3 | . . 1 . 2 Damage Taken 460 | . 11 157 93 199 Core 359 | . 11 70 93 185 Absorbed by Shields . | . . . . . Core Remaining (%) 90 | 100 95 82 83 . Volleys Fired 5 | . . 5 . . Largest 1 | . . 1 . . Hottest 30 | . . 30 . . Shots Fired 5 | . . 5 . . Gun . | . . . . . Cannon . | . . . . . Launcher 5 | . . 5 . . Special . | . . . . . Kinetic . | . . . . . Thermal . | . . . . . Explosive 5 | . . 5 . . Electromagnetic . | . . . . . Robot Hit Streak . | . . . . . Robot Miss Streak . | . . . . . Penetration Max . | . . . . . Secondary Targets . | . . . . . Shots Hit Robots . | . . . . . Core Hits . | . . . . . Critical Kills . | . . . . . Critical Parts Destroyed . | . . . . . Critical Strikes . | . . . . . Melee Attacks . | . . . . . Impact . | . . . . . Slashing . | . . . . . Piercing . | . . . . . Sneak Attacks . | . . . . . Combat Hostiles . | . . . . . Follow-up Attacks . | . . . . . Damage Inflicted 3 | . . 3 . . Guns . | . . . . . Cannons . | . . . . . Explosions . | . . . . . Melee . | . . . . . Ramming 3 | . . 3 . . Kinetic . | . . . . . Thermal . | . . . . . Explosive . | . . . . . Electromagnetic . | . . . . . Impact . | . . . . . Slashing . | . . . . . Piercing . | . . . . . Highest Corruption 6 | . . . . 6 Average Corruption 2 | . . . . 2 Corruption Purged . | . . . . . Corruption Blocked . | . . . . . Effects 2 | . . . . 2 Data Loss (minor) 1 | . . . . 1 Alerts 1 | . . . . 1 Overload Shots . | . . . . . Overflow Damage . | . . . . . Projectiles . | . . . . . Explosions . | . . . . . Melee . | . . . . . Knockbacks . | . . . . . Impact . | . . . . . Kinetic . | . . . . . Secondary . | . . . . . Self-Inflicted Damage . | . . . . . Shots . | . . . . . Rammed 5 | . 1 4 . . Targets Rammed 5 | . 1 4 . . Kicked . | . . . . . Crushed . | . . . . . Highest Temperature 8 | . . 8 . . Average Temperature 5 | . . 5 . . Received Heat Transfer 102 | . 6 78 18 . Siege Activations . | . . . . . Martial Activations . | . . . . . Shielding Activations . | . . . . . Robots Disrupted . | . . . . . Combat Hostiles . | . . . . . Robots Corrupted . | . . . . . Combat Hostiles . | . . . . . Parts Fried . | . . . . . Impact Corruptions . | . . . . . Robots Melted . | . . . . . Combat Hostiles . | . . . . . Parts Melted . | . . . . . Heat Transferred . | . . . . . Parts Sabotaged . | . . . . . Parts Stolen . | . . . . . Parts Stripped . | . . . . . Power Chain Reactions . | . . . . . Alert | -11 -10 -9 -8 -7 ------- Run | Yrd Mat Mat Mat Fac Maximum Alert Level . | . . . . . Low Security (%) 100 | 100 100 100 100 100 Level 1 . | . . . . . Level 2 . | . . . . . Level 3 . | . . . . . Level 4 . | . . . . . Level 5 . | . . . . . High Security . | . . . . . Max Security . | . . . . . Peak Influence 30 | . 30 30 8 5 Initial 12 | . . 12 8 . Average 4 | . 9 8 3 . Influence Increases 101 | . 41 45 . 15 Successful Hack 26 | . 11 15 . . Destroy Structure 15 | . . 15 . . Lose Combat Pursuer 60 | . 30 15 . 15 Influence Decreases 101 | . 11 55 20 15 Entered New Map 30 | . . 18 12 . Time Decay 71 | . 11 37 8 15 Squads Dispatched 2 | . . 1 1 . Investigation 1 | . . 1 . . Extermination . | . . . . . Reinforcement 1 | . . . 1 . Assault . | . . . . . Garrison . | . . . . . Intercept . | . . . . . Searches Triggered . | . . . . . Construction Impeded . | . . . . . Haulers Reinforced . | . . . . . Active Scanning Responses . | . . . . . Cargo Convoy Interrupts . | . . . . . Stealth | -11 -10 -9 -8 -7 --------- Run | Yrd Mat Mat Mat Fac Distress Signals 2 | . . . 1 1 Communications Jammed . | . . . . . Distress Signals . | . . . . . Times Spotted 19 | . 3 5 5 6 Peak Tracking Total 5 | . 2 4 5 5 Tactical Retreats 3 | . 1 1 . 1 Traps | -11 -10 -9 -8 -7 ------- Run | Yrd Mat Mat Mat Fac Traps Triggered . | . . . . . Indirectly . | . . . . . Trap Hack Attempts . | . . . . . Triggered . | . . . . . Disarmed . | . . . . . Reprogrammed . | . . . . . Reused . | . . . . . Traps Extracted . | . . . . . Installed . | . . . . . Triggered . | . . . . . Machines | -11 -10 -9 -8 -7 ---------- Run | Yrd Mat Mat Mat Fac Machines Disabled . | . . . . . Max in Single Turn . | . . . . . Machines Repaired . | . . . . . Machines Dismantled . | . . . . . Machines Sabotaged . | . . . . . Overloaded Fab Kills . | . . . . . Hacking | -11 -10 -9 -8 -7 --------- Run | Yrd Mat Mat Mat Fac Machines Accessed 5 | . 2 3 . . Terminals 5 | . 2 3 . . Fabricators . | . . . . . Repair Stations . | . . . . . Recycling Units . | . . . . . Scanalyzers . | . . . . . Garrison Access . | . . . . . Total Hacks 18 | . 9 9 . . Successful 6 | . 3 3 . . Failed 12 | . 6 6 . . Catastrophic 5 | . 4 1 . . Database Lockouts . | . . . . . Manual 18 | . 9 9 . . Terminals 18 | . 9 9 . . Fabricators . | . . . . . Repair Stations . | . . . . . Recycling Units . | . . . . . Scanalyzers . | . . . . . Garrison Access . | . . . . . Terminal Hacks 2 | . 1 1 . . Terminal Index 2 | . 1 1 . . Fabricator Hacks . | . . . . . Repair Station Hacks . | . . . . . Recycling Unit Hacks . | . . . . . Scanalyzer . | . . . . . Garrison Access Hacks . | . . . . . Unauthorized Hacks 4 | . 2 2 . . Terminals 4 | . 2 2 . . Botnet 4 | . 2 2 . . Fabricators . | . . . . . Repair Stations . | . . . . . Recycling Units . | . . . . . Scanalyzers . | . . . . . Garrison Access . | . . . . . Data Cores Recovered . | . . . . . Used . | . . . . . Hacking Detections 5 | . 2 3 . . Full Trace Events 5 | . 2 3 . . Feedback Events . | . . . . . Feedback Blocked . | . . . . . Robot Schematics Acquired . | . . . . . Robots Built . | . . . . . Authchips . | . . . . . Time . | . . . . . Total Robot Build Rating . | . . . . . Part Schematics Acquired . | . . . . . Parts Built . | . . . . . Authchips . | . . . . . Time . | . . . . . Total Part Build Rating . | . . . . . Part Studies Acquired . | . . . . . Parts Repaired . | . . . . . Time . | . . . . . Parts Recycled . | . . . . . Recycled Matter . | . . . . . Retrieved Matter . | . . . . . Retrieved Components . | . . . . . Parts Scanalyzed . | . . . . . Part Schematics Acquired . | . . . . . Parts Damaged . | . . . . . Bothacking | -11 -10 -9 -8 -7 ------------ Run | Yrd Mat Mat Mat Fac Used RIF Installer . | . . . . . Robots Hacked . | . . . . . Non-combat . | . . . . . Combat . | . . . . . Robot Hacks Applied . | . . . . . Relay Couplers Released . | . . . . . Fabnet Peak Effective % . | . . . . . Robots Rewired . | . . . . . Allies Hacked . | . . . . . Hacks Repelled . | . . . . . Allies | -11 -10 -9 -8 -7 -------- Run | Yrd Mat Mat Mat Fac Total Allies . | . . . . . Largest Group . | . . . . . Highest-Rated Group . | . . . . . Highest-Rated Ally . | . . . . . Total Orders . | . . . . . Ally Attacks . | . . . . . Total Damage . | . . . . . Kills . | . . . . . Allies Corrupted . | . . . . . Allies Melted . | . . . . . Intel | -11 -10 -9 -8 -7 ------- Run | Yrd Mat Mat Mat Fac Active Infowar (turns) . | . . . . . Robot Analysis Total . | . . . . . Derelict Logs Recovered . | . . . . . Drone Launches . | . . . . . Drone Recoveries . | . . . . . Exploration | -11 -10 -9 -8 -7 ------------- Run | Yrd Mat Mat Mat Fac Turns Passed 352 | 19 52 103 50 128 Spaces Moved 626 | 31 99 157 95 244 Core 598 | 31 99 157 95 216 Treads . | . . . . . Legs . | . . . . . Wheels . | . . . . . Hover . | . . . . . Flight 28 | . . . . 28 Fastest Speed 40 | 50 50 50 50 40 Average Speed 49 | 50 50 50 50 48 Slowest Speed 50 | 50 50 50 50 50 Overloaded Moves . | . . . . . Propulsion Burnouts . | . . . . . Robots Hopped 1 | . . . . 1 Potential Cave-ins 3 | . . 3 . . Cave-ins Triggered . | . . . . . Exploration Rate (%) 17 | 3 37 16 16 13 Regions Visited 4 Branch Regions . Pre-discovered Areas . | . . . . . Known Exits Taken 2 | . . 1 1 . Unknown Exits Taken 2 | 1 1 . . . Scrap Searched . | . . . . . Spaces Dug 12 | . . 12 . . Terrain Destroyed 35 | . . 35 . . Melee . | . . . . . Projectile . | . . . . . AOE 35 | . . 35 . . Terrain Rammed . | . . . . . Walls Destroyed . | . . . . . Machines Disabled . | . . . . . Actions | -11 -10 -9 -8 -7 --------- Run | Yrd Mat Mat Mat Fac Total 656 | 33 100 175 96 252 Wait . | . . . . . Move 620 | 30 98 156 94 242 Hop 1 | . . . . 1 Pick Up 7 | 3 1 . . 3 Fast Attach 7 | . . 4 1 2 Attach 3 | . . 2 . 1 Detach 4 | . . 3 1 . Swap . | . . . . . Drop 4 | . . 1 . 3 Fire 5 | . . 5 . . Melee . | . . . . . Ram 5 | . 1 4 . . Kick . | . . . . . Crush . | . . . . . Escape Stasis . | . . . . . Rewire . | . . . . . Trap . | . . . . . Miscellaneous . | . . . . . Route ------- -11/Scrapyard -10/Materials -9/Materials (discovered 2 exits: *Mat / [*Sto]) -8/Materials -7/Factory History --------- Turn | Location | Event 10 | -11/Scrapyard | Discovered new exit (range 15) 20 | -11/Scrapyard | Entered Materials 68 | -10/Materials | Discovered new exit (range 4) 72 | -10/Materials | Entered another Materials area 72 | -9/Materials | Evolved 2 slots: Propulsion x1, Utility x1 98 | -9/Materials | Discovered new exit (range 16) 173 | -9/Materials | Discovered new exit (range 4) 174 | -9/Materials | Identified exit to Materials 175 | -9/Materials | Entered another Materials area 175 | -8/Materials | Evolved 2 slots: Propulsion x1, Utility x1 224 | -8/Materials | Discovered new exit (range 3) 224 | -8/Materials | Identified exit to Factory 225 | -8/Materials | Entered Factory 225 | -7/Factory | Evolved 2 slots: Power x1, Utility x1 309 | -7/Factory | Build established: Mutant 353 | -7/Factory | Self-destructed Last Messages --------------- 00246_ W-25 Informer sends out distress signal. 00252_ K-01 Serf collects debris. 00269_ Acquired System Shield. 00298_ Acquired Mic. Nuclear Core. 00312_ Dropped Grenade Launcher. 00316_ Neutrino Reactor explodes. 00316_ Door malfunctions. 00316_ G-47 Trooper destroyed. 00316_ Door malfunctions. 00316_ Chain reaction triggered in Corrupted Lgt. Nuclear Core. 00316_ G-47 Trooper shuts down. 00316_ Door malfunctions. 00316_ Acquired Corrupted Powered Hammer. 00320_ U-05 Engineer builds a Door. 00322_ Acquired 40 matter. 00326_ System corrupted: Component data lost. 00340_ Acquired Xenon Bombardment Thruster. 00345_ K-01 Serf collects debris. 00349_ System corrupted: IFF burst signal emitted. 00349_ U-05 Engineer lays Concrete. Map ----- +----------------------------------------------------+ | ?????????????????????????????????????????????????? | | ?????????????????????????????????????????????????? | | ?????????????????????????????????????????????????? | | ?????????????????????????????????????????????????? | | ############?????????????????????????????????????? | | #?????????????????????????????????????? | | [ #?????????????????????????????????????? | | #?????????????????????????????????????? | | ? """ """ #?????????????????????????????????????? | | ??""" """ #?????????????????????????????????????? | | """ """ ###########???????????????????????????? | | # #???????????????????????????? | | ########+### #???????????????????????????? | | # / #???????????????????????????? | | # # #???????????????????????????? | | " """ + #########+#???????????????????????????? | | " """ # ^ #???????????????????????????? | | " """ # #???????????????????????????? | | ?# ]! #???????????????? ????????? | | #####?# ][ #??????????????? ????"??? | | ###???# """ ################t ####"T"# | | ??# """ | | ""?## """ g | | """# ! ""G" | | """# ? " " | | ! + @r ?? | | """# ## T#####/#;##/#### ####????# | | """# ###### # ######### "" | | ""?#######????# # # # """" | | ????????????# / # # """" | | ###?????????????# # # # | | ????????????????# # # ! + | | ????????????????# # # # | | ????????????????# # # # ! | | ????????????????# u # # # ! | | ????????????????# # + # ! | | ????????????????# # # + # | | ????????????????# # + # # | | ????????????????# # # # # | | ????????????????############## # + # | | ?????????????????????????????###+#############+### | | ?????????????????????????????????????????????????? | | ?????????????????????????????????????????????????? | | ?????????????????????????????????????????????????? | | ?????????????????????????????????????????????????? | | ?????????????????????????????????????????????????? | | ?????????????????????????????????????????????????? | | ?????????????????????????????????????????????????? | | ?????????????????????????????????????????????????? | | ?????????????????????????????????????????????????? | +----------------------------------------------------+ Best States ------------- Heat Dissipation 50 Energy Generation 5 Energy Capacity 100 Matter Stores 300 Matter Capacity 300 Sight Range 16 Terrain Scan Density 10 Base Temperature (-) 100 Evasion (%) 62 Defensive Hacking 10 Item Schematics ----------------- None Robot Schematics ------------------ None Fabricated ------------ Nothing Repaired ---------- Nothing Studied --------- None Alien Tech Used ----------------- None Achievements -------------- None Challenges ------------ None Game ------ Seed CatalystDimensionalRigger Manual? 0 Play Time 00:06:36 Cumulative 293.7 hours Start 2025.11.27 @ 17:45:05 End 2025.11.27 @ 17:50:02 Sessions 1 Manual Loads 0 Difficulty Rogue Special Mode None Game No. 364 Rogue 364 Adventurer 0 Explorer 0 Win Type - Total 19 Types 12/0/3/1/1/0/0/1/0/1 Lore% 77 Gallery% 75 Achievement% 57 Wizard Run 0 Options --------- Layout 1 ASCII 0 Keyboard 1 Movement Numpad Keybinds 0 Fullscreen 2 Font 32/SmallcapsGlow Map View 77x35 Zoom Use 0% Tactical HUD 1 Map Filters NONE Filters NONE Steam 1 RUN: f69d6379-4c03-4725-ba67-28cc3e89db10